Cogmind - Beta 14 X2 @@@ ROGUE MODE // 2024.07.29 @ 21:31:54 Player: UnifiBg Result: Destroyed by G-47 Trooper with Particle Gun Performance ------------- Evolutions (0) 0 Regions Visited (2) 400 Robots Destroyed (15) 75 Value Destroyed (406) 406 Prototype IDs (0) 0 Alien Tech Used (0) 0 Bonus (0) 0 TOTAL SCORE: 881 Bonus ------- None Cogmind --------- Core Integrity 0/250 Matter 290/300 Energy 226/250 System Corruption 0% Temperature Cool (9) Movement Rolling (90) Location -10/Mines Parts ------- > --- POWER (1) -------- Ion Engine > --- PROPULSION (2) --- Armored Wheel Armored Wheel > --- UTILITY (2) ------ Small Storage Unit Structural Scanner > --- WEAPON (2) ------- Plasma Cutter Hammer > --- INVENTORY (8) ---- Aluminum Leg Aluminum Leg Medium Matter Pod (0) Seismic Detector Mining Laser Peak State ------------ > --- POWER ------------ Ion Engine > --- PROPULSION ------- Armored Wheel Armored Wheel > --- UTILITY ---------- Small Storage Unit Structural Scanner > --- WEAPON ----------- Plasma Cutter Hammer > --- INVENTORY -------- Aluminum Leg Aluminum Leg Medium Matter Pod Seismic Detector Mining Laser [Rating: 10] Favorites ----------- Power Light Ion Engine Engine Light Ion Engine Propulsion Light Treads Treads Light Treads Wheel Armored Wheel Utility Small Storage Unit Device Structural Scanner Storage Small Storage Unit Weapon Assault Rifle Energy Gun Medium Laser Ballistic Gun Assault Rifle Special Weapon Plasma Cutter Impact Weapon Hammer Build | -11 -10 -10 ------- Run | Yrd Mat Min Slots Evolved . | . . . Power . | . . . Propulsion . | . . . Utility . | . . . Weapon . | . . . Parts Attached 18 | 7 10 1 Power 4 | 1 2 1 Engine 4 | 1 2 1 Core . | . . . Reactor . | . . . Propulsion 4 | 2 2 . Treads 2 | 2 . . Leg . | . . . Wheel 2 | . 2 . Hover . | . . . Flight . | . . . Utility 3 | 2 1 . Device 2 | 1 1 . Storage 1 | 1 . . Processor . | . . . Hackware . | . . . Protection . | . . . Artifact . | . . . Weapon 7 | 2 5 . Energy Gun 1 | . 1 . Energy Cannon . | . . . Ballistic Gun 2 | 2 . . Ballistic Cannon . | . . . Launcher . | . . . Special Weapon 2 | . 2 . Impact Weapon 2 | . 2 . Slashing Weapon . | . . . Piercing Weapon . | . . . Special Melee Weapon . | . . . Unidentified Prototypes . | . . . Parts Lost 7 | . 7 . Power 2 | . 2 . Propulsion 2 | . 2 . Utility . | . . . Weapon 3 | . 3 . Highest Loss Streak 4 | . 4 . To Critical Strikes . | . . . Average Slot Usage (%) 94 | . 94 100 Engine 12 | . 12 14 Treads 23 | . 24 . Wheel 1 | . 1 28 Device 14 | . 14 14 Storage 14 | . 14 14 Energy Gun 4 | . 4 . Ballistic Gun 16 | . 16 . Special Weapon 1 | . 1 14 Impact Weapon 5 | . 4 14 Naked Turns . | . . . Heaviest Build 15 | 13 15 14 Greatest Support 40 | 40 40 24 Greatest Overweight (x) 3 | 1 3 . Average Overweight (x) . | . . . Largest Inventory Capacity 8 | 8 8 8 Average Capacity 7 | 7 8 8 Most Carried 6 | 1 6 5 Average Carried 3 | . 4 5 Final Capacity 8 | 8 8 8 Final Carried 6 | 1 6 5 Class Distribution -------------------- 100% | Mutant Dominant Class ---------------- Mutant | -10/Materials Mutant | -10/Mines Resources | -11 -10 -10 ----------- Run | Yrd Mat Min Matter Collected 537 | 314 223 . Remotely . | . . . Salvage Created 577 | 97 439 41 Parts 26 | 9 15 2 Haulers Intercepted . | . . . Recyclers Shooed . | . . . Parts Field Recycled . | . . . Retrieved Matter . | . . . Parts Self-Destructed . | . . . Prevented . | . . . Kills | -11 -10 -10 ------- Run | Yrd Mat Min Combat Hostiles Destroyed 10 | . 9 1 Melee 2 | . 1 1 Guns 7 | . 7 . Classes Destroyed 4 | 2 2 . Worker 1 | . 1 . Tunneler 2 | 2 . . Recycler 2 | 1 1 . Grunt 10 | . 9 1 Best Kill Streak 4 | 3 4 1 Combat Bots Only 2 | . 2 1 Max Kills in Single Turn 1 | 1 1 1 Gunslinging . | . . . Exploded . | . . . Melee 1 | . 1 1 Uniques/NPCs Destroyed . | . . . Combat | -11 -10 -10 -------- Run | Yrd Mat Min Hostile Shots Fired 114 | . 97 17 Missed 30 | . 26 4 Damage Taken 1132 | . 953 179 Core 261 | . 230 31 Absorbed by Shields . | . . . Core Remaining (%) 100 | 100 . . Volleys Fired 47 | 9 37 1 Largest 2 | 2 2 1 Hottest 150 | 40 150 20 Shots Fired 86 | 18 67 1 Gun 80 | 18 62 . Cannon . | . . . Launcher . | . . . Special 6 | . 5 1 Kinetic 64 | 18 46 . Thermal 22 | . 21 1 Explosive . | . . . Electromagnetic . | . . . Robot Hit Streak 11 | 6 11 3 Robot Miss Streak 4 | 2 4 . Penetration Max . | . . . Secondary Targets . | . . . Shots Hit Robots 69 | 11 54 4 Core Hits 23 | 4 18 1 Critical Kills . | . . . Critical Parts Destroyed 3 | . 2 1 Critical Strikes 3 | . 2 1 Destroy 1 | . 1 . Smash 2 | . 1 1 Melee Attacks 15 | . 9 6 Impact 15 | . 9 6 Slashing . | . . . Piercing . | . . . Sneak Attacks 2 | . 2 . Combat Hostiles . | . . . Follow-up Attacks . | . . . Damage Inflicted 1121 | 149 877 95 Guns 710 | 149 561 . Cannons . | . . . Explosions . | . . . Melee 342 | . 258 84 Ramming 10 | . 10 . Kinetic 584 | 149 435 . Thermal 185 | . 174 11 Explosive . | . . . Electromagnetic . | . . . Impact 342 | . 258 84 Slashing . | . . . Piercing . | . . . Highest Corruption . | . . . Average Corruption . | . . . Corruption Purged . | . . . Corruption Blocked . | . . . Overload Shots . | . . . Overflow Damage 128 | . 97 31 Projectiles . | . . . Explosions . | . . . Melee 128 | . 97 31 Knockbacks 1 | . 1 . Impact 1 | . 1 . Kinetic . | . . . Secondary . | . . . Self-Inflicted Damage . | . . . Shots . | . . . Rammed 7 | . 7 . Targets Rammed 7 | . 7 . Kicked . | . . . Crushed . | . . . Highest Temperature 335 | . 335 1 Average Temperature 106 | . 108 1 Received Heat Transfer 663 | . 558 105 Effects 1 | . 1 . Shutdowns 1 | . 1 . Siege Activations . | . . . Robots Corrupted 2 | . 2 . Combat Hostiles 1 | . 1 . Parts Fried 4 | . 4 . Impact Corruptions 7 | . 6 1 Robots Melted . | . . . Combat Hostiles . | . . . Parts Melted 1 | . 1 . Heat Transferred 507 | . 470 37 Parts Sabotaged . | . . . Parts Stolen . | . . . Parts Stripped . | . . . Power Chain Reactions . | . . . Alert | -11 -10 -10 ------- Run | Yrd Mat Min Peak Influence 103 | 15 103 21 Initial 9 | . 9 1 Average 37 | 6 43 11 Maximum Alert Level . | . . . Low Security (%) 100 | 100 100 100 Level 1 . | . . . Level 2 . | . . . Level 3 . | . . . Level 4 . | . . . Level 5 . | . . . High Security . | . . . Max Security . | . . . Squads Dispatched 1 | . 1 . Investigation 1 | . 1 . Extermination . | . . . Reinforcement . | . . . Assault . | . . . Garrison . | . . . Intercept . | . . . Searches Triggered . | . . . Construction Impeded . | . . . Haulers Reinforced . | . . . Active Scanning Responses . | . . . Cargo Convoy Interrupts . | . . . Stealth | -11 -10 -10 --------- Run | Yrd Mat Min Distress Signals 3 | . 3 . Communications Jammed . | . . . Distress Signals . | . . . Times Spotted 22 | . 20 2 Peak Tracking Total 5 | . 5 2 Tactical Retreats 3 | . 3 . Traps | -11 -10 -10 ------- Run | Yrd Mat Min Traps Triggered . | . . . Indirectly . | . . . Trap Hack Attempts . | . . . Triggered . | . . . Disarmed . | . . . Reprogrammed . | . . . Reused . | . . . Traps Extracted . | . . . Installed . | . . . Triggered . | . . . Machines | -11 -10 -10 ---------- Run | Yrd Mat Min Machines Disabled . | . . . Max in Single Turn . | . . . Machines Repaired . | . . . Machines Dismantled . | . . . Machines Sabotaged . | . . . Overloaded Fab Kills . | . . . Hacking | -11 -10 -10 --------- Run | Yrd Mat Min Machines Accessed 6 | . 6 . Terminals 6 | . 6 . Fabricators . | . . . Repair Stations . | . . . Recycling Units . | . . . Scanalyzers . | . . . Garrison Access . | . . . Total Hacks 18 | . 18 . Successful 9 | . 9 . Failed 9 | . 9 . Catastrophic 2 | . 2 . Database Lockouts . | . . . Manual 9 | . 9 . Terminals 18 | . 18 . Fabricators . | . . . Repair Stations . | . . . Recycling Units . | . . . Scanalyzers . | . . . Garrison Access . | . . . Terminal Hacks 7 | . 7 . Unreport Threat 3 | . 3 . Dispatch Records 1 | . 1 . Patrol Status 1 | . 1 . Zone Layout 2 | . 2 . Fabricator Hacks . | . . . Repair Station Hacks . | . . . Recycling Unit Hacks . | . . . Scanalyzer . | . . . Garrison Access Hacks . | . . . Unauthorized Hacks 2 | . 2 . Terminals 2 | . 2 . Botnet 2 | . 2 . Fabricators . | . . . Repair Stations . | . . . Recycling Units . | . . . Scanalyzers . | . . . Garrison Access . | . . . Data Cores Recovered . | . . . Used . | . . . Hacking Detections 6 | . 6 . Full Trace Events 1 | . 1 . Feedback Events . | . . . Feedback Blocked . | . . . Robot Schematics Acquired . | . . . Robots Built . | . . . Authchips . | . . . Time . | . . . Total Robot Build Rating . | . . . Part Schematics Acquired . | . . . Parts Built . | . . . Authchips . | . . . Time . | . . . Total Part Build Rating . | . . . Parts Repaired . | . . . Time . | . . . Parts Recycled . | . . . Recycled Matter . | . . . Retrieved Matter . | . . . Retrieved Components . | . . . Parts Scanalyzed . | . . . Part Schematics Acquired . | . . . Parts Damaged . | . . . Bothacking | -11 -10 -10 ------------ Run | Yrd Mat Min Used RIF Installer . | . . . Robots Hacked . | . . . Non-combat . | . . . Combat . | . . . Robot Hacks Applied . | . . . Relay Couplers Released . | . . . Fabnet Peak Effective % . | . . . Robots Rewired . | . . . Allies Hacked . | . . . Hacks Repelled . | . . . Allies | -11 -10 -10 -------- Run | Yrd Mat Min Total Allies . | . . . Largest Group . | . . . Highest-Rated Group . | . . . Highest-Rated Ally . | . . . Total Orders . | . . . Ally Attacks . | . . . Total Damage . | . . . Kills . | . . . Allies Corrupted . | . . . Allies Melted . | . . . Intel | -11 -10 -10 ------- Run | Yrd Mat Min Robot Analysis Total . | . . . Derelict Logs Recovered . | . . . Drone Launches . | . . . Drone Recoveries . | . . . Exploration | -11 -10 -10 ------------- Run | Yrd Mat Min Turns Passed 1014 | 145 847 22 Spaces Moved 466 | 69 394 3 Core 26 | 4 22 . Treads 404 | 65 339 . Legs . | . . . Wheels 36 | . 33 3 Hover . | . . . Flight . | . . . Fastest Speed 50 | 50 90 90 Average Speed 153 | 155 153 90 Slowest Speed 200 | 160 200 90 Overloaded Moves . | . . . Propulsion Burnouts . | . . . Robots Hopped . | . . . Cave-ins Triggered . | . . . Exploration Rate (%) 22 | 5 57 5 Regions Visited 2 Branch Regions 1 Pre-discovered Areas . | . . . Known Exits Taken . | . . . Unknown Exits Taken 2 | 1 1 . Scrap Searched . | . . . Spaces Dug . | . . . Terrain Destroyed 3 | . 3 . Melee . | . . . Projectile 3 | . 3 . AOE . | . . . Terrain Rammed . | . . . Walls Destroyed . | . . . Machines Disabled . | . . . Actions | -11 -10 -10 --------- Run | Yrd Mat Min Total 632 | 86 535 11 Wait 71 | 1 70 . Move 464 | 68 393 3 Hop . | . . . Pick Up 9 | 1 8 . Fast Attach 10 | 7 3 . Attach 4 | . 3 1 Detach . | . . . Swap 4 | . 4 . Drop 1 | . 1 . Fire 47 | 9 37 1 Melee 15 | . 9 6 Ram . | . . . Kick . | . . . Crush 7 | . 7 . Escape Stasis . | . . . Rewire . | . . . Trap . | . . . Miscellaneous . | . . . Route ------- -11/Scrapyard -10/Materials (discovered 3 exits: [*Mat] / [*Min] / [*Sub]) -10/Mines History --------- Turn | Location | Event 20 | -11/Scrapyard | Discovered new exit (range 16) 146 | -11/Scrapyard | Entered Materials 308 | -10/Materials | Build established: Mutant 460 | -10/Materials | Discovered new exit (range 5) 607 | -10/Materials | Discovered new exit (range 5) 805 | -10/Materials | Discovered new exit (range 8) 887 | -10/Materials | Core integrity fell below 50% 912 | -10/Materials | Core integrity fell below 20% 948 | -10/Materials | Lost 4 parts (1p2n1w) 993 | -10/Materials | Entered Mines 1015 | -10/Mines | Destroyed by G-47 Trooper with Particle Gun Last Messages --------------- 00946_ Wheel fried. 00946_ K-01 Serf destroyed. 00946_ K-01 Serf collects debris. 00959_ Acquired Arm. Wheel. 00960_ K-01 Serf collects debris. 00961_ Acquired Arm. Wheel. 00964_ Acquired Plasma Cutter. 00964_ K-01 Serf collects debris. 00968_ Acquired 2 matter. 00969_ Acquired 4 matter. 00970_ Acquired 24 matter. 00971_ K-01 Serf collects debris. 00989_ Acquired Med. Matter Pod. LOCATION=UNKNOWN GOAL=ESCAPE 01003_ G-34 Mercenary destroyed. 01014_ G-47 Trooper suffers critical hit (Smash). 01014_ Destroyed Aluminum Leg. 01014_ G-47 Trooper system corrupted by crushing effect. Map ----- +----------------------------------------------------+ | ?????????????????????????????????????? | | ?????????????????????????????????????? | | ?????????????????????????????????????? | | ?????????????????????????????????????? | | ?????????????????????????????????????? | | ?????????????????????????????????????? | | ?????????????????????????????????????? | | ?????????????????????????????????????? | | ?????????????????????????????????????? | | ?????????????????????????????????????? | | ?????????????????????????????????????? | | ?????????????????????????????????????? | | ?????????????????????????????????????? | | ?????????????????????????????????????? | | ?????????????????????????????????????? | | ???#############?????????????????????? | | ???##############????????????????????? | | ?## ###????????????????????? | | ?## """ """ ????????????????????? | | ?## """ """ ##?????????????????????? | | ?## """ """ ##?????????????????????? | | ?## ##?????????????????????? | | ?## """ ##?????????????????????? | | ?## """ ##?????????????????????? | | ?## """ ##?????????????????????? | | ?## @##?????????????????????? | | ?## g%##?????????????????????? | | ?#### ##########?????????????????????? | | ?#### ##########?????????????????????? | | ???## ???????????????????????????????? | | ?????????????????????????????????????? | | ?????????????????????????????????????? | | ?????????????????????????????????????? | | ?????????????????????????????????????? | | ?????????????????????????????????????? | | ?????????????????????????????????????? | | ?????????????????????????????????????? | | ?????????????????????????????????????? | | ?????????????????????????????????????? | | ?????????????????????????????????????? | | ?????????????????????????????????????? | | ?????????????????????????????????????? | | ?????????????????????????????????????? | | ?????????????????????????????????????? | | ?????????????????????????????????????? | | | | | | | | | | | +----------------------------------------------------+ Best States ------------- Heat Dissipation 25 Energy Generation 10 Energy Capacity 250 Matter Stores 300 Matter Capacity 300 Sight Range 16 Terrain Scan Density 10 Evasion (%) 42 Recoil Reduction 2 Item Schematics ----------------- None Robot Schematics ------------------ None Fabricated ------------ Nothing Alien Tech Used ----------------- None Achievements -------------- None Challenges ------------ None Game ------ Seed ImprinterKineticMapper Manual? 0 Play Time 00:11:25 Cumulative 3.7 hours Start 2024.07.29 @ 19:33:49 End 2024.07.29 @ 21:31:54 Sessions 1 Manual Loads 0 Difficulty Rogue Special Mode None Game No. 4 Rogue 4 Adventurer 0 Explorer 0 Win Type - Total 0 Types 0/0/0/0/0/0/0/0/0 Lore% 7 Gallery% 10 Achievement% 12 Wizard Run 0 Options --------- Layout 2 ASCII 0 Keyboard 1 Movement Arrows Keybinds 0 Fullscreen 2 Font 20/SmallcapsGlow Map View 56x54 Zoom Use 0% Tactical HUD 1 Map Filters NONE Filters NONE Steam X RUN: 8cf9e012-8295-477a-a84e-d84fc40008d0